Cogmind - Beta 15 @@@ ROGUE MODE // 2025.06.24 @ 11:33:32 Player: Dendrocnid Result: Self-destructed Performance ------------- Evolutions (5) 2500 Regions Visited (4) 800 Robots Destroyed (7) 35 Value Destroyed (282) 282 Prototype IDs (1) 20 Alien Tech Used (0) 0 Bonus (800) 800 TOTAL SCORE: 4437 Bonus ------- Registered with UFD 300 Met Optimus in HQ 500 Cogmind --------- Core Integrity 664/1000 Matter 300/300 Energy 99/100 System Corruption 0% Temperature Cool (0) Movement Core (50) Location -5/Factory Parts ------- > --- POWER (1) -------- (None) > --- PROPULSION (4) --- (None) > --- UTILITY (8) ------ (None) > --- WEAPON (4) ------- (None) > --- INVENTORY (5) ---- Light Neutrino Core Peak State ------------ > --- POWER ------------ Light Neutrino Core > --- PROPULSION ------- Armored Treads Wheel Wheel > --- UTILITY ---------- Scrap Suit Improved Heat Sink Large Storage Unit > --- WEAPON ----------- Subdweller Beam Cannon Assault Rifle Bolt Gun Gauss Rifle > --- INVENTORY -------- (None) [Rating: 32] Favorites ----------- Power Subdweller Power Source Engine Subdweller Power Source Power Core Light Neutrino Core Propulsion Wheel Treads Armored Treads Wheel Wheel Utility Scrap Shield Device Scrap Suit Storage Small Storage Unit Protection Scrap Shield Weapon Assault Rifle Energy Cannon Subdweller Beam Cannon Ballistic Gun Assault Rifle Special Weapon CPS Tube Slashing Weapon Ripteeth Build | -11 -10 -10 -7 -5 ------- Run | Yrd Mat Sub Scr Fac Slots Evolved 10 | . . . . 10 Power . | . . . . . Propulsion 2 | . . . . 2 Utility 6 | . . . . 6 Weapon 2 | . . . . 2 Parts Attached 25 | 7 . 7 6 5 Power 5 | 1 . 2 . 2 Engine 3 | 1 . 2 . . Core 2 | . . . . 2 Reactor . | . . . . . Propulsion 7 | 2 . 2 3 . Treads 1 | . . . 1 . Leg . | . . . . . Wheel 6 | 2 . 2 2 . Hover . | . . . . . Flight . | . . . . . Utility 6 | 2 . 1 1 2 Device 3 | 1 . . 1 1 Storage 2 | 1 . . . 1 Processor . | . . . . . Hackware . | . . . . . Protection 1 | . . 1 . . Artifact . | . . . . . Weapon 7 | 2 . 2 2 1 Energy Gun . | . . . . . Energy Cannon 1 | . . . 1 . Ballistic Gun 5 | 2 . 2 . 1 Ballistic Cannon . | . . . . . Launcher . | . . . . . Special Weapon 1 | . . . 1 . Impact Weapon . | . . . . . Slashing Weapon . | . . . . . Piercing Weapon . | . . . . . Special Melee Weapon . | . . . . . Unidentified Prototypes 1 | . . . . 1 Parts Lost 17 | . . 5 3 9 Power 2 | . . 2 . . Propulsion 7 | . . 3 1 3 Utility 2 | . . . . 2 Weapon 6 | . . . 2 4 Highest Loss Streak 8 | . . 5 3 8 To Critical Strikes . | . . . . . Average Backups 4 | 3 6 5 4 1 Power . | . 1 . . . Propulsion 1 | 2 4 3 1 . Utility . | . . . 1 . Weapon 1 | . 1 1 1 . Tool/Special . | . . . . . Unused Backups 6 | 2 . . 3 1 Power 1 | . . . . 1 Propulsion 4 | 2 . . 2 . Utility . | . . . . . Weapon 1 | . . . 1 . Tool/Special . | . . . . . Average Slot Usage (%) 83 | . 100 95 84 43 Engine 12 | . 14 12 14 1 Treads 10 | . . . 13 3 Wheel 15 | . 28 25 13 8 Device 6 | . 14 13 4 7 Storage 2 | . 14 13 . 3 Protection 6 | . . . 9 . Ballistic Gun 26 | . 28 28 27 8 Peak Build Rating 32 | 7 7 9 19 32 Average Rating 13 | 5 7 7 14 20 On Entrance 8 | . 7 7 9 18 Naked Turns 9 | . . . . 9 Heaviest Build 48 | 13 13 27 27 48 Greatest Support 20 | 20 20 20 20 20 Greatest Overweight (x) 6 | . . 4 2 6 Average Overweight (x) . | . . . 1 1 Largest Inventory Capacity 15 | 8 8 8 5 15 Average Capacity 6 | 7 8 7 5 12 Most Carried 7 | 6 6 7 5 5 Average Carried 4 | 4 6 5 4 1 Final Capacity 8 | 8 8 5 5 5 Final Carried 6 | 6 6 5 5 1 Class Distribution -------------------- 67% | Mutant 23% | Scrapper 4% | Scavenger-Gunner 3% | Scavenger-Mutant Dominant Class ---------------- Mutant | -10/Materials Mutant | -10/Subcaves Mutant | -7/Scraptown Scavenger-Gunner | -5/Factory Resources | -11 -10 -10 -7 -5 ----------- Run | Yrd Mat Sub Scr Fac Matter Collected 555 | 250 . 121 111 73 Remotely . | . . . . . Salvage Created 348 | 14 . 143 129 62 Parts 22 | 4 . 10 6 2 Haulers Intercepted . | . . . . . Recyclers Shooed . | . . . . . Parts Field Recycled . | . . . . . Retrieved Matter . | . . . . . Parts Self-Destructed 1 | . . . 1 . Prevented . | . . . . . Kills | -11 -10 -10 -7 -5 ------- Run | Yrd Mat Sub Scr Fac Combat Hostiles Destroyed 6 | . . 3 2 1 Guns 4 | . . 3 . 1 Cannons 2 | . . . 2 . Classes Destroyed 5 | 1 . 1 2 1 Tunneler 1 | 1 . . . . Hunter 1 | . . . . 1 Subdweller 3 | . . 3 . . Explorer 1 | . . . 1 . Scrapper 1 | . . . 1 . Best Kill Streak 2 | 1 . 1 2 1 Combat Bots Only 2 | . . 1 2 1 Max Kills in Single Turn 1 | 1 . 1 1 1 Gunslinging . | . . . . . Exploded . | . . . . . Melee . | . . . . . Uniques/NPCs Destroyed . | . . . . . Combat | -11 -10 -10 -7 -5 -------- Run | Yrd Mat Sub Scr Fac Hostile Shots Fired 117 | . . 20 34 63 Missed 30 | . . 5 8 17 Hits 87 | . . 15 26 46 Melee 21 | . . . . 21 Projectile 66 | . . 15 26 25 Critical Strikes 9 | . . 2 1 6 Damage Taken 2155 | . . 420 508 1227 Core 479 | . . 59 84 336 Absorbed by Shields . | . . . . . Regen/Repaired (Parts) 16 | . . . 6 10 Core Remaining (%) 71 | 100 . . 42 . Volleys Fired 36 | 2 . 14 7 13 Largest 3 | 2 . 2 2 3 Hottest 120 | 40 . 50 100 120 Shots Fired 73 | 4 . 25 13 31 Gun 63 | 4 . 25 10 24 Cannon 10 | . . . 3 7 Launcher . | . . . . . Special . | . . . . . Kinetic 63 | 4 . 25 10 24 Thermal 10 | . . . 3 7 Explosive . | . . . . . Electromagnetic . | . . . . . Robot Hit Streak 10 | 2 . 5 8 10 Robot Miss Streak 4 | 1 . 4 4 2 Penetration Max . | . . . . . Secondary Targets . | . . . . . Shots Hit Robots 47 | 2 . 15 9 21 Core Hits 18 | 1 . 4 6 7 Critical Kills . | . . . . . Critical Parts Destroyed . | . . . . . Critical Strikes . | . . . . . Melee Attacks . | . . . . . Impact . | . . . . . Slashing . | . . . . . Piercing . | . . . . . Sneak Attacks . | . . . . . Combat Hostiles . | . . . . . Follow-up Attacks . | . . . . . Damage Inflicted 713 | 25 . 203 165 320 Guns 463 | 25 . 203 83 152 Cannons 250 | . . . 82 168 Explosions . | . . . . . Melee . | . . . . . Ramming . | . . . . . Kinetic 463 | 25 . 203 83 152 Thermal 250 | . . . 82 168 Explosive . | . . . . . Electromagnetic . | . . . . . Impact . | . . . . . Slashing . | . . . . . Piercing . | . . . . . Highest Corruption 1 | . . . 1 . Average Corruption 1 | . . . 1 . Corruption Purged . | . . . . . Corruption Blocked . | . . . . . Overload Shots . | . . . . . Overflow Damage . | . . . . . Projectiles . | . . . . . Explosions . | . . . . . Melee . | . . . . . Knockbacks . | . . . . . Impact . | . . . . . Kinetic . | . . . . . Secondary . | . . . . . Self-Inflicted Damage . | . . . . . Shots . | . . . . . Rammed 1 | . . . . 1 Targets Rammed 1 | . . . . 1 Kicked . | . . . . . Crushed . | . . . . . Highest Temperature 307 | . . 307 156 58 Average Temperature 102 | . . 156 95 27 Received Heat Transfer 1145 | . . 685 289 171 Effects 2 | . . 2 . . Interference 2 | . . 2 . . Siege Activations . | . . . . . Martial Activations . | . . . . . Shielding Activations . | . . . . . Robots Disrupted . | . . . . . Combat Hostiles . | . . . . . Robots Corrupted . | . . . . . Combat Hostiles . | . . . . . Parts Fried . | . . . . . Impact Corruptions . | . . . . . Robots Melted . | . . . . . Combat Hostiles . | . . . . . Parts Melted 2 | . . 1 1 . Heat Transferred 309 | . . . 87 222 Parts Sabotaged . | . . . . . Parts Stolen . | . . . . . Parts Stripped . | . . . . . Power Chain Reactions . | . . . . . Alert | -11 -10 -10 -7 -5 ------- Run | Yrd Mat Sub Scr Fac Maximum Alert Level . | . . . . . Low Security (%) 100 | 100 100 . . 100 Level 1 . | . . . . . Level 2 . | . . . . . Level 3 . | . . . . . Level 4 . | . . . . . Level 5 . | . . . . . High Security . | . . . . . Max Security . | . . . . . Peak Influence 30 | 5 . . . 30 Initial . | . . . . . Average 4 | . . . . 6 Influence Increases 35 | 5 . . . 30 Destroy 0b10 Robot/C 20 | . . . . 20 Destroy 0b10 Robot/NC 5 | 5 . . . . Destroy Leader 10 | . . . . 10 Influence Decreases 35 | 5 . . . 30 Time Decay 35 | 5 . . . 30 Squads Dispatched . | . . . . . Investigation . | . . . . . Extermination . | . . . . . Reinforcement . | . . . . . Assault . | . . . . . Garrison . | . . . . . Intercept . | . . . . . Searches Triggered . | . . . . . Construction Impeded . | . . . . . Haulers Reinforced . | . . . . . Active Scanning Responses . | . . . . . Cargo Convoy Interrupts . | . . . . . Stealth | -11 -10 -10 -7 -5 --------- Run | Yrd Mat Sub Scr Fac Distress Signals 1 | . . . . 1 Communications Jammed . | . . . . . Distress Signals . | . . . . . Times Spotted 20 | . . 3 12 5 Peak Tracking Total 10 | . . 2 10 7 Tactical Retreats . | . . . . . Traps | -11 -10 -10 -7 -5 ------- Run | Yrd Mat Sub Scr Fac Traps Triggered 1 | . . . . 1 Indirectly . | . . . . . Trap Hack Attempts . | . . . . . Triggered . | . . . . . Disarmed . | . . . . . Reprogrammed . | . . . . . Reused . | . . . . . Traps Extracted . | . . . . . Installed . | . . . . . Triggered . | . . . . . Machines | -11 -10 -10 -7 -5 ---------- Run | Yrd Mat Sub Scr Fac Machines Disabled . | . . . . . Max in Single Turn . | . . . . . Machines Repaired . | . . . . . Machines Dismantled . | . . . . . Machines Sabotaged . | . . . . . Overloaded Fab Kills . | . . . . . Hacking | -11 -10 -10 -7 -5 --------- Run | Yrd Mat Sub Scr Fac Machines Accessed 6 | . . . 6 . Terminals . | . . . . . Fabricators . | . . . . . Repair Stations . | . . . . . Recycling Units . | . . . . . Scanalyzers . | . . . . . Garrison Access . | . . . . . Total Hacks 31 | . . . 31 . Successful 31 | . . . 31 . Failed . | . . . . . Catastrophic . | . . . . . Database Lockouts . | . . . . . Manual . | . . . . . Terminals . | . . . . . Fabricators . | . . . . . Repair Stations . | . . . . . Recycling Units . | . . . . . Scanalyzers . | . . . . . Garrison Access . | . . . . . Terminal Hacks 31 | . . . 31 . Record 31 | . . . 31 . Fabricator Hacks . | . . . . . Repair Station Hacks . | . . . . . Recycling Unit Hacks . | . . . . . Scanalyzer . | . . . . . Garrison Access Hacks . | . . . . . Unauthorized Hacks . | . . . . . Terminals . | . . . . . Fabricators . | . . . . . Repair Stations . | . . . . . Recycling Units . | . . . . . Scanalyzers . | . . . . . Garrison Access . | . . . . . Data Cores Recovered . | . . . . . Used . | . . . . . Hacking Detections . | . . . . . Full Trace Events . | . . . . . Feedback Events . | . . . . . Feedback Blocked . | . . . . . Robot Schematics Acquired . | . . . . . Robots Built . | . . . . . Authchips . | . . . . . Time . | . . . . . Total Robot Build Rating . | . . . . . Part Schematics Acquired . | . . . . . Parts Built . | . . . . . Authchips . | . . . . . Time . | . . . . . Total Part Build Rating . | . . . . . Parts Repaired . | . . . . . Time . | . . . . . Parts Recycled . | . . . . . Recycled Matter . | . . . . . Retrieved Matter . | . . . . . Retrieved Components . | . . . . . Parts Scanalyzed . | . . . . . Part Schematics Acquired . | . . . . . Parts Damaged . | . . . . . Bothacking | -11 -10 -10 -7 -5 ------------ Run | Yrd Mat Sub Scr Fac Used RIF Installer . | . . . . . Robots Hacked . | . . . . . Non-combat . | . . . . . Combat . | . . . . . Robot Hacks Applied . | . . . . . Relay Couplers Released . | . . . . . Fabnet Peak Effective % . | . . . . . Robots Rewired . | . . . . . Allies Hacked . | . . . . . Hacks Repelled . | . . . . . Allies | -11 -10 -10 -7 -5 -------- Run | Yrd Mat Sub Scr Fac Total Allies . | . . . . . Largest Group . | . . . . . Highest-Rated Group . | . . . . . Highest-Rated Ally . | . . . . . Total Orders . | . . . . . Ally Attacks . | . . . . . Total Damage . | . . . . . Kills . | . . . . . Allies Corrupted . | . . . . . Allies Melted 3 | . . . 3 . Intel | -11 -10 -10 -7 -5 ------- Run | Yrd Mat Sub Scr Fac Active Infowar (turns) 310 | 12 28 270 . . Seismic 310 | 12 28 270 . . Robot Analysis Total . | . . . . . Derelict Logs Recovered 1 | . . 1 . . Drone Launches . | . . . . . Drone Recoveries . | . . . . . Exploration | -11 -10 -10 -7 -5 ------------- Run | Yrd Mat Sub Scr Fac Turns Passed 2033 | 75 28 341 1424 165 Spaces Moved 1488 | 63 32 310 973 110 Core 22 | 1 . 2 . 19 Treads 282 | . . . 282 . Legs . | . . . . . Wheels 1184 | 62 32 308 691 91 Hover . | . . . . . Flight . | . . . . . Fastest Speed 50 | 50 80 80 80 50 Average Speed 122 | 79 80 82 142 97 Slowest Speed 350 | 80 80 250 250 350 Overloaded Moves . | . . . . . Propulsion Burnouts . | . . . . . Robots Hopped . | . . . . . Potential Cave-ins . | . . . . . Cave-ins Triggered . | . . . . . Exploration Rate (%) 18 | 4 7 18 60 4 Regions Visited 4 Branch Regions 2 Pre-discovered Areas 1 | . . 1 . . Known Exits Taken 1 | . . . 1 . Unknown Exits Taken 3 | 1 1 1 . . Scrap Searched 2 | . . . 2 . Spaces Dug . | . . . . . Terrain Destroyed . | . . . . . Melee . | . . . . . Projectile . | . . . . . AOE . | . . . . . Terrain Rammed . | . . . . . Walls Destroyed . | . . . . . Machines Disabled . | . . . . . Actions | -11 -10 -10 -7 -5 --------- Run | Yrd Mat Sub Scr Fac Total 1627 | 81 34 370 1000 142 Wait 37 | . 3 29 . 5 Move 1484 | 62 31 309 972 110 Hop . | . . . . . Pick Up 21 | 8 . 5 7 1 Fast Attach 13 | 7 . 1 3 2 Attach 12 | . . 5 2 5 Detach 1 | . . . 1 . Swap 3 | . . 1 2 . Drop 17 | 2 . 4 6 5 Fire 36 | 2 . 14 7 13 Melee . | . . . . . Ram 1 | . . . . 1 Kick . | . . . . . Crush . | . . . . . Escape Stasis . | . . . . . Rewire . | . . . . . Trap . | . . . . . Miscellaneous 2 | . . 2 . . Route ------- -11/Scrapyard -10/Materials -10/Subcaves -7/Scraptown (discovered 2 exits: *Fac x2) -5/Factory History --------- Turn | Location | Event 18 | -11/Scrapyard | Discovered new exit (range 15) 76 | -11/Scrapyard | Entered Materials 77 | -10/Materials | Met a group of wandering Federalists 103 | -10/Materials | Discovered new exit (range 3) 104 | -10/Materials | Entered Subcaves 104 | -10/Subcaves | Accompanied by 2 allies 105 | -10/Subcaves | Continued accompanying wandering Federalists (3) 118 | -10/Subcaves | Learned location of Zion (-6) 196 | -10/Subcaves | A swath of the cavern ceiling suddenly collapsed 307 | -10/Subcaves | Build established: Mutant 366 | -10/Subcaves | Wandering Federalist uncovered a shortcut to Scraptown 442 | -10/Subcaves | Lost 5 parts (2p3n) 445 | -10/Subcaves | Entered Scraptown 737 | -7/Scraptown | Visited Observation Area 819 | -7/Scraptown | Visited Spacefarers 1007 | -7/Scraptown | Visited UFD Registry 1292 | -7/Scraptown | Registered with UFD as "Smoothtorch" 1321 | -7/Scraptown | Visited Chapter 10 1355 | -7/Scraptown | Visited Scrap Suit Storage 1378 | -7/Scraptown | Found Scrap Suit 1410 | -7/Scraptown | Visited Curators Association 1455 | -7/Scraptown | Delivered Scrap Shield to a Scientist 1581 | -7/Scraptown | Visited Abandonware Association 1597 | -7/Scraptown | Learned abandonware demo "REPAIR.EXE" 1597 | -7/Scraptown | Learned abandonware demo "SHUTEYE.EXE" 1638 | -7/Scraptown | Met Optimus 1638 | -7/Scraptown | Accepted into 0bPrime 1648 | -7/Scraptown | Build established: Scrapper 1729 | -7/Scraptown | Visited DA-N13 Charitable Foundation 1772 | -7/Scraptown | Civil war broke out across Scraptown 1846 | -7/Scraptown | Identified exit to Factory 1849 | -7/Scraptown | Core integrity fell below 50% 1869 | -7/Scraptown | Entered Factory 1869 | -5/Factory | Evolved 10 slots: Propulsion x2, Utility x6, Weapon x2 1873 | -5/Factory | Lost 3 parts (1n2w) 1877 | -5/Factory | Lost 7 allies 2034 | -5/Factory | Self-destructed Last Messages --------------- 02004_ Bolt penetrates Wall. 02004_ U-05 Engineer lays Concrete. 02005_ Bolt Gun destroyed. 02005_ Assault Rifle destroyed. 02006_ U-05 Engineer lays Concrete. 02007_ Sub. Beam Cannon shoots sparks and powers down. 02007_ U-05 Engineer lays Concrete. 02007_ Broken Sub. Beam Cannon destroyed. 02009_ Slammed into L-41 Fighter. 02009_ Destabilizing: System interference. 02009_ Scrap Suit temporarily disabled. 02010_ L-41 Fighter destroyed. 02011_ Acquired 11 matter. 02016_ Scrap Suit destroyed. 02024_ R-10 Processor collects Lgt. Neutrino Core. 02025_ Dropped Lrg. Storage Unit. 02027_ R-10 Processor collects Lrg. Storage Unit. Map ----- +----------------------------------------------------+ | ??????????????????????"""""" # # | | ????????????????????# """""" # # | | ????????????????????# """""" # ########### | | ????????????????????# # ! #??? | | ????????????????????# # ! #??? | | ????????????????????####+####+#### ! "" #??? | | ???????????????????????# ???#%#??# """ #??? | | ???????????????######### #### #??# F" #??? | | ????????????? #??# """ #??? | | ????????????? #### "" #??? | | ????????????? """ #??? | | ???????????????# """ #??? | | ???????????????# """ """ """ #??? | | ???????????????+ """ """ #??? | | ???????????????# """ """ #??? | | ???????????????# """ """ ############## #??? | | ???????????????# #????????????? #??? | | ???????????????# = = #??????????????? ??? | | ???????????????# u #???????????????? ????? | | ???????????????# #?????????????????????? | | ???????????????# #?????????????????????? | | ???????????????# "" "" m#?????????????????????? | | ???????????????# ""F"" #?????????????????????? | | ?????????????? """ u #?????????????????????? | | ??????????????#?######## #?????????????????????? | | ???????????????????????# @ #?????????????????????? | | ???????????????????????# #?????????????????????? | | ?????????????????????? #?????????????????????? | | ????????????????????? #?????????????????????? | | ???????????????????? ?????????????????????? | | ??????????????????# ?????????????????????? | | ??????????????????# k????????????????????? | | ??????????????????# """ ""????????????????????? | | ??????????????????" """ """???????????????????? | | ?????????????????"" """ """???????????????????? | | ?????????????????"Y k ? w ?????????????????????? | | ?????????????????"" ??? "?????????????????????? | | ??????????????????" ???? "?????????????????????? | | ??????????????????# ???? "?????????????????????? | | ?????????????????????????? ??????????????????????? | | ?????????????????????????????????????????????????? | | ?????????????????????????????????????????????????? | | ?????????????????????????????????????????????????? | | ?????????????????????????????????????????????????? | | ?????????????????????????????????????????????????? | | ?????????????????????????????????????????????????? | | ?????????????????????????????????????????????????? | | ?????????????????????????????????????????????????? | | ?????????????????????????????????????????????????? | | ?????????????????????????????????????????????????? | +----------------------------------------------------+ Best States ------------- Heat Dissipation 54 Energy Generation 19 Energy Capacity 200 Matter Stores 300 Matter Capacity 300 Sight Range 16 Terrain Scan Density 10 Armor Coverage 800 Evasion (%) 50 Recoil Reduction 1 Item Schematics ----------------- None Robot Schematics ------------------ None Fabricated ------------ Nothing Repaired ---------- Nothing Alien Tech Used ----------------- None Achievements -------------- None Challenges ------------ None Game ------ Seed MyomerThiefSplitter Manual? 0 Play Time 00:31:32 Cumulative 151.5 hours Start 2025.06.24 @ 11:00:45 End 2025.06.24 @ 11:33:32 Sessions 1 Manual Loads 0 Difficulty Rogue Special Mode None Game No. 236 Rogue 236 Adventurer 0 Explorer 0 Win Type - Total 1 Types 1/0/0/0/0/0/0/0/0/0 Lore% 24 Gallery% 45 Achievement% 44 Wizard Run 0 Options --------- Layout 2 ASCII 0 Keyboard 0 Movement Mouse Keybinds 0 Fullscreen 1 Font 24/Smallcaps Map View 50x44 Zoom Use 0% Tactical HUD 1 Map Filters NONE Filters NONE Steam 1 RUN: 955b9fa8-dd29-4cb7-ada7-ef079417bc4b